fUSD/lending_fUSD_20260605
["ID","MTS","AMOUNT","RATE_DAILY","PERIOD"]
[424119354,1780601476000,-500.0,0.00037863,11]
[424119351,1780601476000,-500.0,0.00037863,11]
[424119357,1780601476000,-500.0,0.00037863,11]
[424119359,1780601476000,-500.0,0.00037863,11]
[424119360,1780601476000,-500.0,0.00037863,11]
[424119363,1780601476000,-500.0,0.00037863,11]
[424119362,1780601476000,-500.0,0.00037863,11]
[424119361,1780601476000,-500.0,0.00037863,11]
[424119358,1780601476000,-500.0,0.00037863,11]
[424119364,1780601476000,-500.0,0.00037863,11]
[424119307,1780601476000,-513.78,0.00037863,11]
[424119337,1780601476000,-500.0,0.00037863,11]
[424119341,1780601476000,-500.0,0.00037863,11]
[424119365,1780601476000,-500.0,0.00037863,11]
[424119331,1780601476000,-500.0,0.00037863,11]
[424119334,1780601476000,-500.0,0.00037863,11]
[424119310,1780601476000,-500.0,0.00037863,11]
[424119313,1780601476000,-500.0,0.00037863,11]
[424119312,1780601476000,-500.0,0.00037863,11]
[424119311,1780601476000,-308.60090197,0.00037863,11]
[424119317,1780601476000,-608.41,0.00037863,11]
[424119316,1780601476000,-500.0,0.00037863,11]
[424119318,1780601476000,-734.23,0.00037863,11]
[424119319,1780601476000,-500.0,0.00037863,11]
[424119314,1780601476000,-500.0,0.00037863,11]
[424119315,1780601476000,-500.0,0.00037863,11]
[424119323,1780601476000,-500.0,0.00037863,11]
[424119324,1780601476000,-500.0,0.00037863,11]
[424119309,1780601476000,-500.0,0.00037863,11]
[424119322,1780601476000,-847.5,0.00037863,11]
[424119329,1780601476000,-834.84,0.00037863,11]
[424119333,1780601476000,-500.0,0.00037863,11]
[424119342,1780601476000,-500.0,0.00037863,11]
[424119332,1780601476000,-500.0,0.00037863,11]
[424119327,1780601476000,-500.0,0.00037863,11]
[424119326,1780601476000,-500.0,0.00037863,11]
[424119325,1780601476000,-500.0,0.00037863,11]
[424119321,1780601476000,-500.0,0.00037863,11]
[424119343,1780601476000,-590.71,0.00037863,11]
[424119330,1780601476000,-500.0,0.00037863,11]
[424119320,1780601476000,-500.0,0.00037863,11]
[424119328,1780601476000,-500.0,0.00037863,11]
[424119407,1780601477000,-500.0,0.00037863,11]
[424119415,1780601477000,-809.94,0.00037863,11]
[424119404,1780601477000,-500.0,0.00037863,11]
[424119405,1780601477000,-563.67,0.00037863,11]
[424119400,1780601477000,-500.0,0.00037863,11]
[424119399,1780601477000,-500.0,0.00037863,11]
[424119402,1780601477000,-500.0,0.00037863,11]
[424119401,1780601477000,-500.0,0.00037863,11]
[424119413,1780601477000,-500.0,0.00037863,11]
[424119398,1780601477000,-500.0,0.00037863,11]
[424119403,1780601477000,-637.68,0.00037863,11]
[424119411,1780601477000,-522.36,0.00037863,11]
[424119417,1780601477000,-500.0,0.00037863,11]
[424119412,1780601477000,-500.0,0.00037863,11]
[424119410,1780601477000,-500.0,0.00037863,11]
[424119414,1780601477000,-500.0,0.00037863,11]
[424119409,1780601477000,-500.0,0.00037863,11]
[424119416,1780601477000,-500.0,0.00037863,11]
[424119418,1780601477000,-500.0,0.00037863,11]
[424119419,1780601477000,-500.0,0.00037863,11]
[424119424,1780601477000,-500.0,0.00037863,11]
[424119427,1780601477000,-500.0,0.00037863,11]
[424119421,1780601477000,-500.0,0.00037863,11]
[424119423,1780601477000,-500.0,0.00037863,11]
[424119397,1780601477000,-500.0,0.00037863,11]
[424119422,1780601477000,-500.0,0.00037863,11]
[424119408,1780601477000,-500.0,0.00037863,11]
[424119396,1780601477000,-500.0,0.00037863,11]
[424119383,1780601477000,-550.11,0.00037863,11]
[424119393,1780601477000,-500.0,0.00037863,11]
[424119425,1780601477000,-500.0,0.00037863,11]
[424119367,1780601477000,-500.0,0.00037863,11]
[424119366,1780601477000,-500.0,0.00037863,11]
[424119373,1780601477000,-500.0,0.00037863,11]
[424119374,1780601477000,-500.0,0.00037863,11]
[424119375,1780601477000,-500.0,0.00037863,11]
[424119368,1780601477000,-631.12,0.00037863,11]
[424119376,1780601477000,-545.11,0.00037863,11]
[424119378,1780601477000,-500.0,0.00037863,11]
[424119379,1780601477000,-715.51,0.00037863,11]
[424119380,1780601477000,-500.0,0.00037863,11]
[424119369,1780601477000,-500.0,0.00037863,11]
[424119371,1780601477000,-667.4,0.00037863,11]
[424119370,1780601477000,-500.0,0.00037863,11]
[424119372,1780601477000,-500.0,0.00037863,11]
[424119381,1780601477000,-3301.75,0.00037863,11]
[424119385,1780601477000,-761.79,0.00037863,11]
[424119386,1780601477000,-625.52,0.00037863,11]
[424119384,1780601477000,-500.0,0.00037863,11]
[424119387,1780601477000,-878.44,0.00037863,11]
[424119390,1780601477000,-500.0,0.00037863,11]
[424119388,1780601477000,-938.89,0.00037863,11]
[424119389,1780601477000,-737.5,0.00037863,11]
[424119391,1780601477000,-500.0,0.00037863,11]
[424119382,1780601477000,-2661.47,0.00037863,11]
[424119392,1780601477000,-500.0,0.00037863,11]
[424119394,1780601477000,-500.0,0.00037863,11]
[424119395,1780601477000,-500.0,0.00037863,11]
[424119426,1780601477000,-505.97037918,0.00037863,11]
[424119406,1780601477000,-500.0,0.00037863,11]
[424119428,1780601477000,-500.0,0.00037863,11]
[424119458,1780601477000,-741.75,0.00037863,11]
[424119467,1780601477000,-500.0,0.00037863,11]
[424119460,1780601477000,-808.02,0.00037863,11]
[424119463,1780601477000,-619.28,0.00037863,11]
[424119461,1780601477000,-500.0,0.00037863,11]
[424119462,1780601477000,-614.84317314,0.00037863,11]
[424119464,1780601477000,-542.45,0.00037863,11]
[424119459,1780601477000,-500.0,0.00037863,11]
[424119469,1780601477000,-500.0,0.00037863,11]
[424119470,1780601477000,-2731.82,0.00037863,11]
[424119468,1780601477000,-500.0,0.00037863,11]
[424119473,1780601477000,-600.94,0.00037863,11]
[424119479,1780601477000,-500.0,0.00037863,11]
[424119471,1780601477000,-500.0,0.00037863,11]
[424119472,1780601477000,-929.56,0.00037863,11]
[424119474,1780601477000,-500.0,0.00037863,11]
[424119476,1780601477000,-500.0,0.00037863,11]
[424119478,1780601477000,-500.0,0.00037863,11]
[424119475,1780601477000,-500.0,0.00037863,11]
[424119477,1780601477000,-500.0,0.00037863,11]
[424119481,1780601477000,-500.0,0.00037863,11]
[424119480,1780601477000,-500.0,0.00037863,11]
[424119483,1780601477000,-500.0,0.00037863,11]
[424119487,1780601477000,-500.0,0.00037863,11]
[424119482,1780601477000,-500.0,0.00037863,11]
[424119485,1780601477000,-821.02,0.00037863,11]
[424119484,1780601477000,-500.0,0.00037863,11]
[424119466,1780601477000,-589.53813297,0.00037863,11]
[424119465,1780601477000,-500.0,0.00037863,11]
[424119420,1780601477000,-500.0,0.00037863,11]
[424119455,1780601477000,-4203.86,0.00037863,11]
[424119457,1780601477000,-500.0,0.00037863,11]
[424119429,1780601477000,-500.0,0.00037863,11]
[424119435,1780601477000,-500.0,0.00037863,11]
[424119434,1780601477000,-500.0,0.00037863,11]
[424119433,1780601477000,-500.0,0.00037863,11]
[424119436,1780601477000,-500.0,0.00037863,11]
[424119439,1780601477000,-538.96,0.00037863,11]
[424119437,1780601477000,-500.0,0.00037863,11]
[424119440,1780601477000,-500.0,0.00037863,11]
[424119431,1780601477000,-500.0,0.00037863,11]
[424119441,1780601477000,-500.0,0.00037863,11]
[424119432,1780601477000,-500.0,0.00037863,11]
[424119430,1780601477000,-500.0,0.00037863,11]
[424119442,1780601477000,-500.0,0.00037863,11]
[424119438,1780601477000,-1470.71,0.00037863,11]
[424119443,1780601477000,-500.0,0.00037863,11]
[424119444,1780601477000,-500.0,0.00037863,11]
[424119452,1780601477000,-500.0,0.00037863,11]
[424119453,1780601477000,-500.0,0.00037863,11]
[424119451,1780601477000,-500.0,0.00037863,11]
[424119447,1780601477000,-500.0,0.00037863,11]
[424119448,1780601477000,-302.78946321,0.00037863,11]
[424119446,1780601477000,-500.0,0.00037863,11]
[424119456,1780601477000,-500.0,0.00037863,11]
[424119454,1780601477000,-675.05,0.00037863,11]
[424119449,1780601477000,-500.0,0.00037863,11]
[424119445,1780601477000,-500.0,0.00037863,11]
[424119450,1780601477000,-500.0,0.00037863,11]
[424119486,1780601477000,-500.0,0.00037863,11]
[424119529,1780601478000,-2635.06,0.00037863,11]
[424119528,1780601478000,-500.0,0.00037863,11]
[424119539,1780601478000,-500.0,0.00037863,11]
[424119540,1780601478000,-3315.98,0.00037863,11]
[424119524,1780601478000,-500.0,0.00037863,11]
[424119522,1780601478000,-500.0,0.00037863,11]
[424119519,1780601478000,-500.0,0.00037863,11]
[424119523,1780601478000,-500.0,0.00037863,11]
[424119525,1780601478000,-500.0,0.00037863,11]
[424119521,1780601478000,-500.0,0.00037863,11]
[424119531,1780601478000,-500.0,0.00037863,11]
[424119526,1780601478000,-528.61,0.00037863,11]
[424119530,1780601478000,-500.0,0.00037863,11]
[424119548,1780601478000,-3132.24,0.00037863,11]
[424119532,1780601478000,-1000.0,0.00037863,11]
[424119536,1780601478000,-500.0,0.00037863,11]
[424119534,1780601478000,-500.0,0.00037863,11]
[424119533,1780601478000,-500.0,0.00037863,11]
[424119537,1780601478000,-500.0,0.00037863,11]
[424119538,1780601478000,-548.59002144,0.00037863,11]
[424119541,1780601478000,-3050.34,0.00037863,11]
[424119542,1780601478000,-599.14,0.00037863,11]
[424119543,1780601478000,-560.56,0.00037863,11]
[424119545,1780601478000,-500.0,0.00037863,11]
[424119544,1780601478000,-2951.02,0.00037863,11]
[424119546,1780601478000,-500.0,0.00037863,11]
[424119520,1780601478000,-500.0,0.00037863,2]
[424119535,1780601478000,-4960.3,0.00037863,11]
[424119516,1780601478000,-500.0,0.00037863,11]
[424119514,1780601478000,-500.0,0.00037863,11]
[424119518,1780601478000,-500.0,0.00037863,11]
[424119549,1780601478000,-4507.46,0.00037863,11]
[424119489,1780601478000,-500.0,0.00037863,11]
[424119488,1780601478000,-500.0,0.00037863,11]
[424119491,1780601478000,-500.0,0.00037863,11]
[424119493,1780601478000,-241.50581086,0.00037863,11]
[424119495,1780601478000,-500.0,0.00037863,11]
[424119501,1780601478000,-500.0,0.00037863,11]
[424119496,1780601478000,-500.0,0.00037863,11]
[424119494,1780601478000,-500.0,0.00037863,11]
[424119502,1780601478000,-2751.28,0.00037863,11]
[424119498,1780601478000,-500.0,0.00037863,11]
[424119500,1780601478000,-574.36,0.00037863,11]
[424119492,1780601478000,-500.0,0.00037863,11]
[424119527,1780601478000,-172.87768871,0.00037863,11]
[424119499,1780601478000,-500.0,0.00037863,11]
[424119504,1780601478000,-500.0,0.00037863,11]
[424119503,1780601478000,-2986.57,0.00037863,11]
[424119507,1780601478000,-500.0,0.00037863,11]
[424119515,1780601478000,-500.0,0.00037863,11]
[424119512,1780601478000,-500.0,0.00037863,11]
[424119513,1780601478000,-500.0,0.00037863,11]
[424119508,1780601478000,-500.0,0.00037863,11]
[424119510,1780601478000,-500.0,0.00037863,11]
[424119505,1780601478000,-3857.65,0.00037863,11]
[424119509,1780601478000,-500.0,0.00037863,11]
[424119511,1780601478000,-500.0,0.00037863,11]
[424119506,1780601478000,-500.0,0.00037863,11]
[424119517,1780601478000,-500.0,0.00037863,11]
[424119497,1780601478000,-500.0,0.00037863,11]
[424119490,1780601478000,-551.27,0.00037863,11]
[424119547,1780601478000,-500.0,0.00037863,11]
[424119550,1780601478000,-500.0,0.00037863,11]
[424119583,1780601478000,-500.0,0.00037863,11]
[424119585,1780601478000,-500.0,0.00037863,11]
[424119578,1780601478000,-500.0,0.00037863,11]
[424119587,1780601478000,-500.0,0.00037863,11]
[424119589,1780601478000,-4427.54,0.00037863,11]
[424119590,1780601478000,-500.0,0.00037863,11]
[424119588,1780601478000,-620.29314652,0.00037863,11]
[424119591,1780601478000,-2895.13,0.00037863,11]
[424119593,1780601478000,-748.6,0.00037863,11]
[424119592,1780601478000,-500.0,0.00037863,11]
[424119594,1780601478000,-3559.06,0.00037863,11]
[424119600,1780601478000,-516.59,0.00037863,11]
[424119599,1780601478000,-500.0,0.00037863,11]
[424119586,1780601478000,-1237.98,0.00037863,11]
[424119603,1780601478000,-2062.53,0.00037863,11]
[424119602,1780601478000,-500.0,0.00037863,11]
[424119596,1780601478000,-500.0,0.00037863,11]
[424119601,1780601478000,-500.0,0.00037863,11]
[424119595,1780601478000,-500.0,0.00037863,11]
[424119597,1780601478000,-500.0,0.00037863,11]
[424119605,1780601478000,-500.0,0.00037863,11]
[424119604,1780601478000,-500.0,0.00037863,11]
[424119607,1780601478000,-500.0,0.00037863,11]
[424119608,1780601478000,-500.0,0.00037863,11]
[424119606,1780601478000,-500.0,0.00037863,11]
[424119609,1780601478000,-500.0,0.00037863,11]
[424119610,1780601478000,-3965.92,0.00037863,11]
[424119551,1780601478000,-500.0,0.00037863,11]
[424119598,1780601478000,-3079.67,0.00037863,11]
[424119582,1780601478000,-227.32153804,0.00037863,11]
[424119611,1780601478000,-500.0,0.00037863,11]
[424119580,1780601478000,-500.0,0.00037863,11]
[424119584,1780601478000,-500.0,0.00037863,11]
[424119554,1780601478000,-603.9,0.00037863,11]
[424119558,1780601478000,-500.0,0.00037863,11]
[424119553,1780601478000,-500.0,0.00037863,11]
[424119555,1780601478000,-500.0,0.00037863,11]
[424119557,1780601478000,-500.0,0.00037863,11]
[424119564,1780601478000,-534.99,0.00037863,11]
[424119556,1780601478000,-500.0,0.00037863,11]
[424119560,1780601478000,-500.0,0.00037863,11]
[424119562,1780601478000,-500.0,0.00037863,11]
[424119561,1780601478000,-500.0,0.00037863,11]
[424119559,1780601478000,-500.0,0.00037863,11]
[424119563,1780601478000,-500.0,0.00037863,3]
[424119566,1780601478000,-295.5939033,0.00037863,11]
[424119552,1780601478000,-500.0,0.00037863,11]
[424119567,1780601478000,-500.0,0.00037863,11]
[424119579,1780601478000,-500.0,0.00037863,11]
[424119581,1780601478000,-500.0,0.00037863,11]
[424119577,1780601478000,-500.0,0.00037863,11]
[424119571,1780601478000,-500.0,0.00037863,11]
[424119576,1780601478000,-500.0,0.00037863,11]
[424119575,1780601478000,-500.0,0.00037863,11]
[424119570,1780601478000,-500.0,0.00037863,11]
[424119569,1780601478000,-500.0,0.00037863,11]
[424119574,1780601478000,-500.0,0.00037863,11]
[424119572,1780601478000,-500.0,0.00037863,11]
[424119565,1780601478000,-500.0,0.00037863,11]
[424119568,1780601478000,-500.0,0.00037863,11]
[424119573,1780601478000,-500.0,0.00037863,11]
[424119664,1780601479000,-776.36,0.00037863,11]
[424119653,1780601479000,-4030.2,0.00037863,11]
[424119648,1780601479000,-500.0,0.00037863,11]
[424119646,1780601479000,-500.0,0.00037863,11]
[424119643,1780601479000,-5547.5,0.00037863,11]
[424119649,1780601479000,-500.0,0.00037863,11]
[424119651,1780601479000,-624.6585259,0.00037863,11]
[424119642,1780601479000,-569.6,0.00037863,11]
[424119645,1780601479000,-995.33,0.00037863,10]
[424119647,1780601479000,-500.0,0.00037863,11]
[424119650,1780601479000,-170.06,0.00037863,11]
[424119663,1780601479000,-599.42583494,0.00037863,11]
[424119660,1780601479000,-500.0,0.00037863,11]
[424119654,1780601479000,-500.0,0.00037863,11]
[424119655,1780601479000,-500.0,0.00037863,11]
[424119656,1780601479000,-500.0,0.00037863,11]
[424119661,1780601479000,-545.79,0.00037863,11]
[424119659,1780601479000,-3576.93,0.00037863,11]
[424119658,1780601479000,-500.0,0.00037863,11]
[424119662,1780601479000,-500.0,0.00037863,11]
[424119657,1780601479000,-500.0,0.00037863,11]
[424119668,1780601479000,-4506.51,0.00037863,11]
[424119665,1780601479000,-509.94,0.00037863,11]
[424119667,1780601479000,-501.22,0.00037863,11]
[424119666,1780601479000,-639.13,0.00037863,11]
[424119644,1780601479000,-3043.72,0.00037863,11]
[424119652,1780601479000,-681.44,0.00037863,11]
[424119641,1780601479000,-781.98,0.00037863,11]
[424119627,1780601479000,-500.0,0.00037863,11]
[424119633,1780601479000,-500.0,0.00037863,11]
[424119615,1780601479000,-500.0,0.00037863,11]
[424119616,1780601479000,-500.0,0.00037863,11]
[424119674,1780601479000,-545.01,0.00037863,11]
[424119613,1780601479000,-500.0,0.00037863,11]
[424119612,1780601479000,-500.0,0.00037863,11]
[424119614,1780601479000,-500.0,0.00037863,11]
[424119619,1780601479000,-671.79,0.00037863,11]
[424119617,1780601479000,-500.0,0.00037863,11]
[424119620,1780601479000,-4258.42,0.00037863,11]
[424119618,1780601479000,-500.0,0.00037863,11]
[424119621,1780601479000,-500.0,0.00037863,11]
[424119622,1780601479000,-783.25,0.00037863,7]
[424119624,1780601479000,-500.0,0.00037863,11]
[424119628,1780601479000,-500.0,0.00037863,11]
[424119626,1780601479000,-500.0,0.00037863,11]
[424119623,1780601479000,-500.0,0.00037863,11]
[424119625,1780601479000,-500.0,0.00037863,11]
[424119630,1780601479000,-500.0,0.00037863,11]
[424119638,1780601479000,-4066.44,0.00037863,11]
[424119640,1780601479000,-500.0,0.00037863,11]
[424119636,1780601479000,-500.0,0.00037863,11]
[424119629,1780601479000,-605.1,0.00037863,11]
[424119637,1780601479000,-4217.58,0.00037863,11]
[424119639,1780601479000,-500.0,0.00037863,11]
[424119631,1780601479000,-300.0,0.00037863,11]
[424119635,1780601479000,-625.17,0.00037863,11]
[424119634,1780601479000,-2893.01,0.00037863,11]
[424119632,1780601479000,-3018.08,0.00037863,11]
[424119672,1780601479000,-500.0,0.00037863,11]
[424119729,1780601479000,-500.0,0.00037863,11]
[424119675,1780601479000,-500.0,0.00037863,11]
[424119713,1780601479000,-500.0,0.00037863,11]
[424119706,1780601479000,-500.0,0.00037863,11]
[424119705,1780601479000,-500.0,0.00037863,11]
[424119702,1780601479000,-4100.24,0.00037863,11]
[424119707,1780601479000,-500.0,0.00037863,11]
[424119708,1780601479000,-500.0,0.00037863,11]
[424119710,1780601479000,-500.0,0.00037863,11]
[424119709,1780601479000,-500.0,0.00037863,11]
[424119711,1780601479000,-541.06,0.00037863,11]
[424119712,1780601479000,-3100.56,0.00037863,11]
[424119714,1780601479000,-500.0,0.00037863,11]
[424119716,1780601479000,-825.24,0.00037863,11]
[424119715,1780601479000,-500.0,0.00037863,11]
[424119718,1780601479000,-500.0,0.00037863,11]
[424119719,1780601479000,-552.27,0.00037863,11]
[424119717,1780601479000,-500.0,0.00037863,11]
[424119722,1780601479000,-429.98886186,0.00037863,11]
[424119721,1780601479000,-500.0,0.00037863,11]
[424119720,1780601479000,-500.0,0.00037863,11]
[424119725,1780601479000,-1738.5,0.00037863,11]
[424119724,1780601479000,-187.54763363,0.00037863,11]
[424119723,1780601479000,-3584.09,0.00037863,11]
[424119728,1780601479000,-283.95437756,0.00037863,11]
[424119727,1780601479000,-500.0,0.00037863,11]
[424119731,1780601479000,-500.0,0.00037863,11]
[424119730,1780601479000,-500.0,0.00037863,11]
[424119677,1780601479000,-621.19,0.00037863,11]
[424119704,1780601479000,-500.0,0.00037863,11]
[424119703,1780601479000,-632.6,0.00037863,11]
[424119726,1780601479000,-3333.17,0.00037863,11]
[424119697,1780601479000,-621.98,0.00037863,11]
[424119700,1780601479000,-2571.81,0.00037863,11]
[424119669,1780601479000,-3838.41,0.00037863,11]
[424119676,1780601479000,-500.0,0.00037863,11]
[424119670,1780601479000,-500.0,0.00037863,11]
[424119671,1780601479000,-500.0,0.00037863,11]
[424119678,1780601479000,-500.0,0.00037863,11]
[424119679,1780601479000,-1021.72,0.00037863,11]
[424119689,1780601479000,-500.0,0.00037863,11]
[424119682,1780601479000,-848.37,0.00037863,11]
[424119681,1780601479000,-501.58,0.00037863,11]
[424119683,1780601479000,-3578.37,0.00037863,11]
[424119687,1780601479000,-1409.17,0.00037863,11]
[424119688,1780601479000,-500.0,0.00037863,11]
[424119673,1780601479000,-500.0,0.00037863,11]
[424119684,1780601479000,-542.01,0.00037863,11]
[424119680,1780601479000,-926.27,0.00037863,11]
[424119698,1780601479000,-3281.1,0.00037863,11]
[424119695,1780601479000,-500.0,0.00037863,11]
[424119696,1780601479000,-500.0,0.00037863,11]
[424119699,1780601479000,-500.0,0.00037863,11]
[424119694,1780601479000,-500.0,0.00037863,11]
[424119701,1780601479000,-661.28,0.00037863,11]
[424119691,1780601479000,-500.0,0.00037863,11]
[424119692,1780601479000,-500.0,0.00037863,11]
[424119690,1780601479000,-500.0,0.00037863,11]
[424119686,1780601479000,-3295.91,0.00037863,11]
[424119685,1780601479000,-500.0,0.00037863,11]
[424119693,1780601479000,-500.0,0.00037863,11]
[424119758,1780601480000,-500.0,0.00037863,11]
[424119754,1780601480000,-3144.3,0.00037863,11]
[424119750,1780601480000,-500.0,0.00037863,11]
[424119757,1780601480000,-500.0,0.00037863,11]
[424119755,1780601480000,-500.0,0.00037863,11]
[424119759,1780601480000,-1050.92,0.00037863,11]
[424119760,1780601480000,-3552.5,0.00037863,11]
[424119762,1780601480000,-7717.08,0.00037863,11]
[424119763,1780601480000,-4685.79,0.00037863,11]
[424119768,1780601480000,-500.0,0.00037863,11]
[424119766,1780601480000,-500.0,0.00037863,11]
[424119764,1780601480000,-500.0,0.00037863,11]
[424119769,1780601480000,-500.0,0.00037863,11]
[424119767,1780601480000,-500.0,0.00037863,11]
[424119770,1780601480000,-500.0,0.00037863,11]
[424119771,1780601480000,-500.0,0.00037863,11]
[424119772,1780601480000,-500.0,0.00037863,11]
[424119756,1780601480000,-1732.11,0.00037863,11]
[424119773,1780601480000,-648.32,0.00037863,11]
[424119765,1780601480000,-500.0,0.00037863,11]
[424119753,1780601480000,-500.0,0.00037863,11]
[424119739,1780601480000,-500.0,0.00037863,11]
[424119751,1780601480000,-2945.38,0.00037863,11]
[424119775,1780601480000,-500.0,0.00037863,11]
[424119737,1780601480000,-500.0,0.00037863,11]
[424119735,1780601480000,-535.7,0.00037863,11]
[424119734,1780601480000,-582.54308701,0.00037863,11]
[424119732,1780601480000,-48578.89,0.00037863,11]
[424119733,1780601480000,-713.95,0.00037863,11]
[424119736,1780601480000,-500.0,0.00037863,11]
[424119738,1780601480000,-500.0,0.00037863,11]
[424119742,1780601480000,-500.0,0.00037863,11]
[424119744,1780601480000,-500.0,0.00037863,11]
[424119740,1780601480000,-539.60616335,0.00037863,11]
[424119749,1780601480000,-573.0,0.00037863,11]
[424119743,1780601480000,-3142.83,0.00037863,11]
[424119747,1780601480000,-549.95,0.00037863,11]
[424119745,1780601480000,-4227.65,0.00037863,11]
[424119746,1780601480000,-500.0,0.00037863,11]
[424119741,1780601480000,-2267.8,0.00037863,11]
[424119748,1780601480000,-500.0,0.00037863,11]
[424119761,1780601480000,-500.0,0.00037863,11]
[424119752,1780601480000,-2309.83,0.00037863,11]
[424119785,1780601480000,-500.0,0.00037863,11]
[424119786,1780601480000,-653.83,0.00037863,11]
[424119776,1780601480000,-2310.7,0.00037863,11]
[424119800,1780601480000,-537.34206548,0.00037863,11]
[424119806,1780601480000,-974.44,0.00037863,11]
[424119802,1780601480000,-500.0,0.00037863,11]
[424119808,1780601480000,-1581.21,0.00037863,11]
[424119801,1780601480000,-500.0,0.00037863,11]
[424119804,1780601480000,-2870.25,0.00037863,11]
[424119803,1780601480000,-593.81,0.00037863,11]
[424119807,1780601480000,-3421.72,0.00037863,11]
[424119805,1780601480000,-500.0,0.00037863,11]
[424119811,1780601480000,-500.0,0.00037863,11]
[424119810,1780601480000,-3412.16,0.00037863,11]
[424119813,1780601480000,-500.0,0.00037863,11]
[424119815,1780601480000,-500.0,0.00037863,11]
[424119814,1780601480000,-3497.51,0.00037863,11]
[424119816,1780601480000,-500.0,0.00037863,11]
[424119817,1780601480000,-500.0,0.00037863,11]
[424119819,1780601480000,-500.0,0.00037863,11]
[424119820,1780601480000,-4478.44,0.00037863,11]
[424119818,1780601480000,-1070.68,0.00037863,11]
[424119798,1780601480000,-1586.97,0.00037863,11]
[424119809,1780601480000,-500.0,0.00037863,2]
[424119812,1780601480000,-500.0,0.00037863,11]
[424119794,1780601480000,-500.0,0.00037863,11]
[424119799,1780601480000,-500.0,0.00037863,11]
[424119777,1780601480000,-2739.7,0.00037863,11]
[424119778,1780601480000,-500.0,0.00037863,11]
[424119781,1780601480000,-500.0,0.00037863,11]
[424119774,1780601480000,-2885.57,0.00037863,11]
[424119779,1780601480000,-500.0,0.00037863,11]
[424119784,1780601480000,-3770.98,0.00037863,11]
[424119782,1780601480000,-500.0,0.00037863,11]
[424119780,1780601480000,-916.33,0.00037863,11]
[424119783,1780601480000,-3854.17,0.00037863,11]
[424119789,1780601480000,-4273.71,0.00037863,11]
[424119790,1780601480000,-1928.99,0.00037863,11]
[424119791,1780601480000,-43853.29,0.00037863,11]
[424119797,1780601480000,-2998.09,0.00037863,11]
[424119792,1780601480000,-500.0,0.00037863,11]
[424119795,1780601480000,-500.0,0.00037863,11]
[424119793,1780601480000,-592.72,0.00037863,11]
[424119788,1780601480000,-500.0,0.00037863,11]
[424119787,1780601480000,-500.0,0.00037863,11]
[424119796,1780601480000,-6161.84,0.00037863,11]
[424119861,1780601481000,-500.0,0.00037863,11]
[424119855,1780601481000,-2613.9,0.00037863,11]
[424119858,1780601481000,-500.0,0.00037863,11]
[424119857,1780601481000,-500.0,0.00037863,11]